[Event "ONJK DE"]
[Site "Enschede, Netherlands"]
[Date "2022.08.09"]
[Round "2.3"]
[White "Verwer, Oscar"]
[Black "Rooijakkers, Liam"]
[Result "0-1"]
[TimeControl "40min + 30sec/move"]
[WhiteElo "1361"]
[BlackElo "1266"]

1. e4 {[%clk 00:40:58]} {[%emt 00:00:01]} e5 {[%clk 00:40:56]} {[%emt
00:00:04]} 2. Nf3 {[%clk 00:41:25]} {[%emt 00:00:04]} Nf6 {[%clk 00:41:20]}
{[%emt 00:00:06]} 3. Nc3 {[%clk 00:41:50]} {[%emt 00:00:06]} Bc5 {[%clk
00:41:42]} {[%emt 00:00:08]} 4. Nxe5 {[%clk 00:42:11]} {[%emt 00:00:08]} Nc6
{[%clk 00:41:53]} {[%emt 00:00:19]} 5. Nxc6 {[%clk 00:42:33]} {[%emt 00:00:09]}
dxc6 {[%clk 00:42:13]} {[%emt 00:00:09]} 6. h3 {[%clk 00:42:56]} {[%emt
00:00:07]} h5 {[%clk 00:42:32]} {[%emt 00:00:11]} 7. Bc4 {[%clk 00:42:45]}
{[%emt 00:00:40]} Qd6 {[%clk 00:42:36]} {[%emt 00:00:27]} 8. d3 {[%clk
00:40:24]} {[%emt 00:02:52]} a5 {[%clk 00:40:11]} {[%emt 00:02:55]} 9. Qf3
{[%clk 00:39:09]} {[%emt 00:01:44]} b5 {[%clk 00:39:32]} {[%emt 00:01:10]} 10.
Nxb5 {[%clk 00:34:49]} {[%emt 00:04:50]} cxb5 {[%clk 00:39:47]} {[%emt
00:00:14]} 11. Bxb5+ {[%clk 00:35:10]} {[%emt 00:00:07]} c6 {[%clk 00:37:47]}
{[%emt 00:02:32]} 12. Ba4 {[%clk 00:35:15]} {[%emt 00:00:25]} Bd7 {[%clk
00:33:34]} {[%emt 00:04:43]} 13. c3 {[%clk 00:31:39]} {[%emt 00:04:08]} Bb6
{[%clk 00:32:16]} {[%emt 00:01:47]} 14. d4 {[%clk 00:30:17]} {[%emt 00:01:51]}
Bxd4 {[%clk 00:31:22]} {[%emt 00:01:24]} 15. cxd4 {[%clk 00:26:03]} {[%emt
00:04:44]} Qb4+ {[%clk 00:31:28]} {[%emt 00:00:22]} 16. Qc3 {[%clk 00:23:17]}
{[%emt 00:03:18]} Qxa4 {[%clk 00:31:10]} {[%emt 00:00:48]} 17. O-O {[%clk
00:21:05]} {[%emt 00:02:41]} Qb4 {[%clk 00:29:35]} {[%emt 00:02:05]} 18. Bd2
{[%clk 00:18:58]} {[%emt 00:02:38]} Qxc3 {[%clk 00:29:45]} {[%emt 00:00:20]} 19.
Bxc3 {[%clk 00:19:18]} {[%emt 00:00:08]} O-O {[%clk 00:29:38]} {[%emt
00:00:39]} 20. e5 {[%clk 00:18:35]} {[%emt 00:01:13]} Nd5 {[%clk 00:29:47]}
{[%emt 00:00:20]} 21. f4 {[%clk 00:18:47]} {[%emt 00:00:18]} Bf5 {[%clk
00:29:23]} {[%emt 00:00:54]} 22. Kh2 {[%clk 00:17:33]} {[%emt 00:01:44]} Rfb8
{[%clk 00:29:05]} {[%emt 00:00:48]} 23. Rg1 {[%clk 00:16:37]} {[%emt 00:01:26]}
h4 {[%clk 00:28:31]} {[%emt 00:01:03]} 24. g4 {[%clk 00:15:42]} {[%emt
00:01:26]} hxg3+ {[%clk 00:28:45]} {[%emt 00:00:16]} 25. Rxg3 {[%clk 00:15:58]}
{[%emt 00:00:14]} Bh7 {[%clk 00:26:52]} {[%emt 00:02:23]} 26. Rag1 {[%clk
00:15:19]} {[%emt 00:01:10]} Nxc3 {[%clk 00:26:01]} {[%emt 00:01:20]} 27. Rxg7+
{[%clk 00:15:31]} {[%emt 00:00:18]} Kh8 {[%clk 00:26:25]} {[%emt 00:00:06]} 28.
bxc3 {[%clk 00:14:12]} {[%emt 00:01:49]} Rb2+ {[%clk 00:26:42]} {[%emt
00:00:12]} 29. R7g2 {[%clk 00:14:21]} {[%emt 00:00:21]} Rab8 {[%clk 00:25:40]}
{[%emt 00:01:33]} 30. Rxb2 {[%clk 00:12:48]} {[%emt 00:02:03]} Rxb2+ {[%clk
00:26:05]} {[%emt 00:00:05]} 31. Rg2 {[%clk 00:13:13]} {[%emt 00:00:06]} Rb5
{[%clk 00:24:15]} {[%emt 00:02:16]} 32. Kg3 {[%clk 00:12:43]} {[%emt 00:01:04]}
Be4 {[%clk 00:23:03]} {[%emt 00:01:40]} 33. Re2 {[%clk 00:12:03]} {[%emt
00:01:12]} Bf5 {[%clk 00:22:30]} {[%emt 00:00:57]} 34. h4 {[%clk 00:11:49]}
{[%emt 00:00:50]} Rb8 {[%clk 00:20:23]} {[%emt 00:02:37]} 35. Rd2 {[%clk
00:10:04]} {[%emt 00:02:16]} Rg8+ {[%clk 00:20:27]} {[%emt 00:00:26]} 36. Kf3
{[%clk 00:10:07]} {[%emt 00:00:26]} Be6 {[%clk 00:17:26]} {[%emt 00:03:31]} 37.
Ke4 {[%clk 00:09:40]} {[%emt 00:00:57]} Rg4 {[%clk 00:17:46]} {[%emt 00:00:10]}
38. Rh2 {[%clk 00:09:56]} {[%emt 00:00:15]} Kg7 {[%clk 00:17:23]} {[%emt
00:00:51]} 39. Kf3 {[%clk 00:09:51]} {[%emt 00:00:37]} Kh6 {[%clk 00:17:06]}
{[%emt 00:00:44]} 40. a3 {[%clk 00:08:31]} {[%emt 00:01:51]} Kh5 {[%clk
00:17:02]} {[%emt 00:00:33]} 41. Rh1 {[%clk 00:07:52]} {[%emt 00:01:10]} Bd5+
{[%clk 00:17:24]} {[%emt 00:00:09]} 0-1

[Event "ONJK DE"]
[Site "Enschede, Netherlands"]
[Date "2022.08.09"]
[Round "2.4"]
[White "Feenstra, Bram"]
[Black "Breider, Jayden"]
[Result "0-1"]
[TimeControl "40min + 30sec/move"]
[WhiteElo "1072"]
[BlackElo "1350"]

1. e4 {[%clk 00:40:57]} {[%emt 00:00:03]} c5 {[%clk 00:40:57]} {[%emt
00:00:03]} 2. Bc4 {[%clk 00:41:19]} {[%emt 00:00:08]} e6 {[%clk 00:41:19]}
{[%emt 00:00:08]} 3. Nc3 {[%clk 00:41:37]} {[%emt 00:00:12]} a6 {[%clk
00:41:36]} {[%emt 00:00:14]} 4. a4 {[%clk 00:41:49]} {[%emt 00:00:18]} d6
{[%clk 00:41:58]} {[%emt 00:00:08]} 5. Nf3 {[%clk 00:42:04]} {[%emt 00:00:15]}
Nf6 {[%clk 00:42:19]} {[%emt 00:00:08]} 6. d3 {[%clk 00:41:58]} {[%emt
00:00:36]} Nbd7 {[%clk 00:42:10]} {[%emt 00:00:40]} 7. Bg5 {[%clk 00:42:12]}
{[%emt 00:00:15]} h6 {[%clk 00:40:56]} {[%emt 00:01:45]} 8. Bxf6 {[%clk
00:42:20]} {[%emt 00:00:21]} Nxf6 {[%clk 00:41:12]} {[%emt 00:00:13]} 9. O-O
{[%clk 00:42:31]} {[%emt 00:00:20]} Be7 {[%clk 00:41:27]} {[%emt 00:00:15]} 10.
d4 {[%clk 00:42:26]} {[%emt 00:00:35]} cxd4 {[%clk 00:41:10]} {[%emt 00:00:48]}
11. Nxd4 {[%clk 00:42:36]} {[%emt 00:00:19]} O-O {[%clk 00:40:57]} {[%emt
00:00:44]} 12. Qf3 {[%clk 00:41:51]} {[%emt 00:01:15]} Qb6 {[%clk 00:40:12]}
{[%emt 00:01:15]} 13. Rad1 {[%clk 00:41:17]} {[%emt 00:01:04]} e5 {[%clk
00:37:14]} {[%emt 00:03:28]} 14. Nf5 {[%clk 00:41:30]} {[%emt 00:00:16]} Bxf5
{[%clk 00:37:37]} {[%emt 00:00:08]} 15. Qxf5 {[%clk 00:41:34]} {[%emt
00:00:25]} Qxb2 {[%clk 00:37:58]} {[%emt 00:00:09]} 16. Nd5 {[%clk 00:41:19]}
{[%emt 00:00:45]} Nxd5 {[%clk 00:37:07]} {[%emt 00:01:20]} 17. Bxd5 {[%clk
00:41:44]} {[%emt 00:00:06]} Rad8 {[%clk 00:29:08]} {[%emt 00:08:29]} 18. Rb1
{[%clk 00:40:57]} {[%emt 00:01:17]} Qxc2 {[%clk 00:29:27]} {[%emt 00:00:12]} 19.
Rxb7 {[%clk 00:41:01]} {[%emt 00:00:25]} Bf6 {[%clk 00:29:01]} {[%emt
00:00:56]} 20. Qg6 {[%clk 00:40:55]} {[%emt 00:00:36]} Kh8 {[%clk 00:25:53]}
{[%emt 00:03:39]} 21. Bxf7 {[%clk 00:39:47]} {[%emt 00:01:37]} Rb8 {[%clk
00:25:03]} {[%emt 00:01:20]} 22. Bd5 {[%clk 00:36:33]} {[%emt 00:03:45]} Rxb7
{[%clk 00:24:33]} {[%emt 00:01:00]} 23. Bxb7 {[%clk 00:36:48]} {[%emt
00:00:14]} Qxa4 {[%clk 00:24:59]} {[%emt 00:00:04]} 24. Bd5 {[%clk 00:36:59]}
{[%emt 00:00:19]} Qd7 {[%clk 00:24:57]} {[%emt 00:00:32]} 25. g3 {[%clk
00:36:22]} {[%emt 00:01:06]} a5 {[%clk 00:24:44]} {[%emt 00:00:44]} 26. Rb1
{[%clk 00:36:34]} {[%emt 00:00:18]} Qe8 {[%clk 00:23:57]} {[%emt 00:01:17]} 27.
Qf5 {[%clk 00:35:34]} {[%emt 00:01:30]} Bg5 {[%clk 00:23:26]} {[%emt 00:01:01]}
28. Qg4 {[%clk 00:35:47]} {[%emt 00:00:16]} Qc8 {[%clk 00:23:14]} {[%emt
00:00:42]} 29. Be6 {[%clk 00:34:23]} {[%emt 00:01:52]} Qc2 {[%clk 00:23:26]}
{[%emt 00:00:21]} 30. Rf1 {[%clk 00:33:26]} {[%emt 00:01:27]} a4 {[%clk
00:18:26]} {[%emt 00:05:31]} 31. Bf5 {[%clk 00:33:12]} {[%emt 00:00:42]} a3
{[%clk 00:18:15]} {[%emt 00:00:43]} 32. Ra1 {[%clk 00:32:52]} {[%emt 00:00:47]}
g6 {[%clk 00:18:17]} {[%emt 00:00:30]} 33. Be6 {[%clk 00:28:26]} {[%emt
00:04:54]} Qxf2+ {[%clk 00:18:06]} {[%emt 00:00:43]} 34. Kh1 {[%clk 00:28:36]}
{[%emt 00:00:16]} Qb2 {[%clk 00:17:48]} {[%emt 00:00:51]} 35. Qd1 {[%clk
00:27:53]} {[%emt 00:01:14]} Rf2 {[%clk 00:08:56]} {[%emt 00:09:22]} 36. Ra2
{[%clk 00:27:47]} {[%emt 00:00:36]} Rxh2+ {[%clk 00:09:17]} {[%emt 00:00:10]}
37. Kg1 {[%clk 00:28:04]} {[%emt 00:00:10]} Be3+ {[%clk 00:09:33]} {[%emt
00:00:16]} 38. Kf1 {[%clk 00:28:20]} {[%emt 00:00:14]} Rh1# {[%clk 00:09:25]}
{[%emt 00:00:07]} 0-1

[Event "ONJK DE"]
[Site "Enschede, Netherlands"]
[Date "2022.08.09"]
[Round "2.5"]
[White "Decraene, Lotus"]
[Black "Deij, Casper"]
[Result "1-0"]
[TimeControl "40min + 30sec/move"]
[WhiteElo "1332"]
[BlackElo "1192"]

1. e4 {[%clk 00:40:58]} {[%emt 00:00:01]} e5 {[%clk 00:40:57]} {[%emt
00:00:04]} 2. Nf3 {[%clk 00:41:20]} {[%emt 00:00:09]} Nc6 {[%clk 00:41:21]}
{[%emt 00:00:06]} 3. Bc4 {[%clk 00:41:41]} {[%emt 00:00:09]} Bc5 {[%clk
00:41:44]} {[%emt 00:00:06]} 4. Nc3 {[%clk 00:41:59]} {[%emt 00:00:11]} d6
{[%clk 00:42:05]} {[%emt 00:00:09]} 5. d3 {[%clk 00:42:11]} {[%emt 00:00:20]}
Bg4 {[%clk 00:42:18]} {[%emt 00:00:16]} 6. h3 {[%clk 00:42:31]} {[%emt
00:00:10]} Be6 {[%clk 00:42:31]} {[%emt 00:00:17]} 7. Bg5 {[%clk 00:41:27]}
{[%emt 00:01:34]} Nf6 {[%clk 00:41:59]} {[%emt 00:01:01]} 8. Nd5 {[%clk
00:41:16]} {[%emt 00:00:42]} Bxd5 {[%clk 00:41:38]} {[%emt 00:00:50]} 9. exd5
{[%clk 00:41:29]} {[%emt 00:00:19]} Nd4 {[%clk 00:40:48]} {[%emt 00:01:19]} 10.
c3 {[%clk 00:41:21]} {[%emt 00:00:38]} Nxf3+ {[%clk 00:40:48]} {[%emt
00:00:29]} 11. Qxf3 {[%clk 00:41:31]} {[%emt 00:00:20]} a6 {[%clk 00:40:41]}
{[%emt 00:00:37]} 12. O-O {[%clk 00:39:49]} {[%emt 00:02:12]} h6 {[%clk
00:40:18]} {[%emt 00:00:53]} 13. Be3 {[%clk 00:39:38]} {[%emt 00:00:39]} Bb6
{[%clk 00:39:44]} {[%emt 00:01:06]} 14. d4 {[%clk 00:39:18]} {[%emt 00:00:50]}
e4 {[%clk 00:38:06]} {[%emt 00:02:07]} 15. Qg3 {[%clk 00:37:17]} {[%emt
00:02:28]} g6 {[%clk 00:36:40]} {[%emt 00:02:00]} 16. f3 {[%clk 00:35:00]}
{[%emt 00:02:47]} Qe7 {[%clk 00:35:10]} {[%emt 00:01:59]} 17. fxe4 {[%clk
00:34:09]} {[%emt 00:01:22]} O-O-O {[%clk 00:34:34]} {[%emt 00:01:06]} 18. Rae1
{[%clk 00:30:23]} {[%emt 00:04:16]} Rdf8 {[%clk 00:32:37]} {[%emt 00:02:27]} 19.
e5 {[%clk 00:29:21]} {[%emt 00:01:32]} dxe5 {[%clk 00:32:19]} {[%emt 00:00:48]}
20. dxe5 {[%clk 00:24:42]} {[%emt 00:05:09]} Bxe3+ {[%clk 00:31:25]} {[%emt
00:01:24]} 21. Qxe3 {[%clk 00:24:03]} {[%emt 00:01:08]} Nd7 {[%clk 00:30:49]}
{[%emt 00:01:06]} 22. Kh1 {[%clk 00:20:30]} {[%emt 00:04:04]} Nb6 {[%clk
00:28:45]} {[%emt 00:02:35]} 23. Bb3 {[%clk 00:20:33]} {[%emt 00:00:26]} Re8
{[%clk 00:27:44]} {[%emt 00:01:31]} 24. d6 {[%clk 00:19:28]} {[%emt 00:01:35]}
Qd8 {[%clk 00:25:22]} {[%emt 00:02:52]} 25. dxc7 {[%clk 00:18:51]} {[%emt
00:01:07]} Qxc7 {[%clk 00:25:16]} {[%emt 00:00:35]} 26. Rxf7 {[%clk 00:18:55]}
{[%emt 00:00:27]} Qd8 {[%clk 00:24:48]} {[%emt 00:00:58]} 27. Rd1 {[%clk
00:16:02]} {[%emt 00:03:23]} Qxd1+ {[%clk 00:24:06]} {[%emt 00:01:12]} 28. Bxd1
{[%clk 00:16:12]} {[%emt 00:00:20]} Nd7 {[%clk 00:24:21]} {[%emt 00:00:15]} 29.
Bg4 {[%clk 00:15:35]} {[%emt 00:01:06]} Rd8 {[%clk 00:23:40]} {[%emt 00:01:11]}
30. e6 {[%clk 00:13:58]} {[%emt 00:02:08]} Kb8 {[%clk 00:23:25]} {[%emt
00:00:46]} 31. Rxd7 {[%clk 00:14:03]} {[%emt 00:00:24]} Rxd7 {[%clk 00:23:01]}
{[%emt 00:00:54]} 32. exd7 {[%clk 00:14:30]} {[%emt 00:00:03]} Rd8 {[%clk
00:23:20]} {[%emt 00:00:10]} 33. Qe5+ {[%clk 00:14:32]} {[%emt 00:00:28]} Ka7
{[%clk 00:23:26]} {[%emt 00:00:25]} 34. Qe8 {[%clk 00:14:43]} {[%emt 00:00:19]}
Rxe8 {[%clk 00:23:48]} {[%emt 00:00:08]} 35. dxe8=Q {[%emt 00:00:10]} h5 {[%emt
00:00:11]} 36. Bf3 {[%clk 00:14:30]} {[%emt 00:00:22]} Kb6 {[%clk 00:24:05]}
{[%emt 00:00:13]} 37. Qb8 {[%clk 00:14:42]} {[%emt 00:00:18]} Kc5 {[%clk
00:24:18]} {[%emt 00:00:18]} 38. Qc7+ {[%clk 00:14:26]} {[%emt 00:00:45]} Kb5
{[%clk 00:24:35]} {[%emt 00:00:13]} 39. Qxb7+ {[%clk 00:14:48]} {[%emt
00:00:07]} Ka5 {[%clk 00:24:50]} {[%emt 00:00:15]} 40. Qb4# {[%clk 00:14:32]}
{[%emt 00:00:16]} 1-0

[Event "ONJK DE"]
[Site "Enschede, Netherlands"]
[Date "2022.08.09"]
[Round "2.6"]
[White "Katpatal, Akshaj (E)"]
[Black "Mittal, Aashray (E)"]
[Result "1-0"]
[TimeControl "40min + 30sec/move"]
[WhiteElo "1874"]
[BlackElo "1153"]

1. e4 {[%clk 00:40:45]} {[%emt 00:00:15]} c5 {[%clk 00:40:59]} {[%emt
00:00:03]} 2. Nf3 {[%clk 00:41:07]} {[%emt 00:00:07]} d6 {[%clk 00:41:26]}
{[%emt 00:00:04]} 3. d4 {[%clk 00:41:30]} {[%emt 00:00:06]} cxd4 {[%clk
00:41:52]} {[%emt 00:00:04]} 4. Nxd4 {[%clk 00:41:56]} {[%emt 00:00:04]} Nf6
{[%clk 00:42:18]} {[%emt 00:00:04]} 5. Nc3 {[%clk 00:42:22]} {[%emt 00:00:04]}
g6 {[%clk 00:42:44]} {[%emt 00:00:04]} 6. Bc4 {[%clk 00:42:24]} {[%emt
00:00:26]} Bg7 {[%clk 00:42:57]} {[%emt 00:00:19]} 7. O-O {[%clk 00:42:31]}
{[%emt 00:00:24]} O-O {[%clk 00:43:23]} {[%emt 00:00:04]} 8. h3 {[%clk
00:42:38]} {[%emt 00:00:22]} Nc6 {[%emt 00:00:33]} 9. Be3 {[%clk 00:42:36]}
{[%emt 00:00:15]} Qc7 {[%clk 00:43:15]} {[%emt 00:00:52]} 10. Bb3 {[%clk
00:42:38]} {[%emt 00:00:28]} Bd7 {[%clk 00:41:52]} {[%emt 00:01:52]} 11. Re1
{[%clk 00:42:33]} {[%emt 00:00:36]} Rac8 {[%clk 00:39:42]} {[%emt 00:02:40]} 12.
Nd5 {[%clk 00:41:18]} {[%emt 00:01:45]} Nxd5 {[%clk 00:40:00]} {[%emt
00:00:12]} 13. Nxc6 {[%clk 00:41:33]} {[%emt 00:00:15]} Nxe3 {[%clk 00:40:10]}
{[%emt 00:00:20]} 14. Nxe7+ {[%clk 00:41:55]} {[%emt 00:00:07]} Kh8 {[%clk
00:40:37]} {[%emt 00:00:03]} 15. Rxe3 {[%clk 00:42:08]} {[%emt 00:00:18]} Rce8
{[%clk 00:40:49]} {[%emt 00:00:18]} 16. Nd5 {[%clk 00:42:22]} {[%emt 00:00:17]}
Qd8 {[%clk 00:39:02]} {[%emt 00:02:16]} 17. c3 {[%clk 00:42:34]} {[%emt
00:00:18]} f5 {[%clk 00:29:35]} {[%emt 00:09:57]} 18. Bc2 {[%clk 00:31:43]}
{[%emt 00:11:21]} fxe4 {[%clk 00:29:36]} {[%emt 00:00:29]} 19. Bxe4 {[%clk
00:30:25]} {[%emt 00:01:48]} Qh4 {[%clk 00:28:32]} {[%emt 00:01:34]} 20. Bf3
{[%clk 00:29:37]} {[%emt 00:01:18]} Rxe3 {[%clk 00:27:24]} {[%emt 00:01:37]} 21.
Nxe3 {[%clk 00:29:30]} {[%emt 00:00:38]} Bc6 {[%clk 00:25:11]} {[%emt
00:02:44]} 22. Nd5 {[%clk 00:25:45]} {[%emt 00:04:15]} Bxd5 {[%clk 00:25:34]}
{[%emt 00:00:06]} 23. Qxd5 {[%clk 00:26:04]} {[%emt 00:00:12]} Qe7 {[%clk
00:24:06]} {[%emt 00:01:57]} 24. Rd1 {[%clk 00:25:59]} {[%emt 00:00:36]} Be5
{[%clk 00:23:21]} {[%emt 00:01:15]} 25. g3 {[%clk 00:25:39]} {[%emt 00:00:49]}
Qf6 {[%clk 00:23:04]} {[%emt 00:00:47]} 26. Rd3 {[%clk 00:23:44]} {[%emt
00:02:26]} Qf5 {[%clk 00:23:09]} {[%emt 00:00:24]} 27. Kg2 {[%clk 00:23:33]}
{[%emt 00:00:42]} b6 {[%clk 00:21:54]} {[%emt 00:01:45]} 28. Qe4 {[%clk
00:23:17]} {[%emt 00:00:45]} Qf7 {[%clk 00:19:55]} {[%emt 00:02:30]} 29. Qb7
{[%clk 00:21:42]} {[%emt 00:02:06]} Qxa2 {[%clk 00:18:44]} {[%emt 00:01:40]} 30.
Qe7 {[%clk 00:19:22]} {[%emt 00:02:50]} Rf7 {[%clk 00:17:31]} {[%emt 00:01:43]}
31. Qe8+ {[%clk 00:19:43]} {[%emt 00:00:08]} Kg7 {[%clk 00:17:57]} {[%emt
00:00:05]} 32. Bd5 {[%clk 00:19:46]} {[%emt 00:00:27]} Rxf2+ {[%clk 00:17:53]}
{[%emt 00:00:33]} 33. Kxf2 {[%clk 00:20:06]} {[%emt 00:00:10]} Qxb2+ {[%clk
00:18:15]} {[%emt 00:00:09]} 34. Kf3 {[%clk 00:20:28]} {[%emt 00:00:08]} Qb1
{[%clk 00:16:26]} {[%emt 00:02:19]} 35. Qf7+ {[%clk 00:20:39]} {[%emt
00:00:19]} Kh6 {[%clk 00:16:51]} {[%emt 00:00:05]} 36. Qf8+ {[%clk 00:21:04]}
{[%emt 00:00:05]} Bg7 {[%clk 00:17:16]} {[%emt 00:00:05]} 37. Qf4+ {[%clk
00:21:21]} {[%emt 00:00:10]} g5 {[%clk 00:17:36]} {[%emt 00:00:13]} 38. Qxd6+
{[%clk 00:21:45]} {[%emt 00:00:05]} Kh5 {[%clk 00:17:34]} {[%emt 00:00:33]} 39.
g4+ {[%clk 00:22:06]} {[%emt 00:00:09]} Kh4 {[%clk 00:17:58]} {[%emt 00:00:06]}
40. Bf7 {[%emt 00:00:25]} Kh5 41. Bd5+ {[%emt 00:00:04]} Kh4 42. Qg3+ {[%emt
00:00:16]} 1-0

[Event "ONJK DE"]
[Site "Enschede, Netherlands"]
[Date "2022.08.09"]
[Round "2.7"]
[White "Peeters, Paul (E)"]
[Black "Thijssen, Freek (E)"]
[Result "1-0"]
[TimeControl "40min + 30sec/move"]
[WhiteElo "1138"]
[BlackElo "1484"]

1. e4 {[%clk 00:40:58]} {[%emt 00:00:01]} e5 {[%clk 00:40:55]} {[%emt
00:00:05]} 2. Nf3 {[%clk 00:41:24]} {[%emt 00:00:05]} Nc6 {[%clk 00:41:19]}
{[%emt 00:00:05]} 3. Bb5 {[%clk 00:41:48]} {[%emt 00:00:07]} Bc5 {[%clk
00:41:25]} {[%emt 00:00:24]} 4. c3 {[%clk 00:42:08]} {[%emt 00:00:10]} d6
{[%clk 00:36:55]} {[%emt 00:05:00]} 5. O-O {[%clk 00:41:58]} {[%emt 00:00:39]}
a6 {[%clk 00:36:17]} {[%emt 00:01:09]} 6. Ba4 {[%clk 00:41:55]} {[%emt
00:00:33]} b5 {[%clk 00:36:01]} {[%emt 00:00:46]} 7. Bb3 {[%clk 00:41:34]}
{[%emt 00:00:51]} Bg4 {[%clk 00:34:53]} {[%emt 00:01:39]} 8. a4 {[%clk
00:40:55]} {[%emt 00:01:07]} Nf6 {[%clk 00:33:11]} {[%emt 00:02:13]} 9. Re1
{[%clk 00:40:46]} {[%emt 00:00:39]} O-O {[%clk 00:32:17]} {[%emt 00:01:25]} 10.
h3 {[%clk 00:39:07]} {[%emt 00:02:08]} Bh5 {[%clk 00:30:32]} {[%emt 00:02:15]}
11. d3 {[%clk 00:38:37]} {[%emt 00:01:00]} h6 {[%clk 00:30:24]} {[%emt
00:00:38]} 12. Be3 {[%clk 00:38:41]} {[%emt 00:00:26]} Bb6 {[%clk 00:28:17]}
{[%emt 00:02:37]} 13. Nbd2 {[%clk 00:36:03]} {[%emt 00:03:08]} Qd7 {[%clk
00:26:00]} {[%emt 00:02:47]} 14. Ra2 {[%clk 00:35:46]} {[%emt 00:00:47]} b4
{[%clk 00:24:37]} {[%emt 00:01:53]} 15. Qa1 {[%clk 00:35:01]} {[%emt 00:01:14]}
a5 {[%clk 00:24:18]} {[%emt 00:00:50]} 16. d4 {[%clk 00:33:42]} {[%emt
00:01:49]} bxc3 {[%clk 00:21:36]} {[%emt 00:03:12]} 17. bxc3 {[%clk 00:34:00]}
{[%emt 00:00:12]} Bxf3 {[%clk 00:19:43]} {[%emt 00:02:23]} 18. Nxf3 {[%clk
00:34:10]} {[%emt 00:00:20]} exd4 {[%clk 00:19:36]} {[%emt 00:00:37]} 19. cxd4
{[%clk 00:33:45]} {[%emt 00:00:55]} Nb4 {[%clk 00:19:38]} {[%emt 00:00:28]} 20.
Rae2 {[%clk 00:32:13]} {[%emt 00:02:02]} c5 {[%clk 00:16:46]} {[%emt 00:03:22]}
21. dxc5 {[%clk 00:31:39]} {[%emt 00:01:04]} dxc5 {[%clk 00:15:11]} {[%emt
00:02:05]} 22. Rd1 {[%clk 00:31:35]} {[%emt 00:00:34]} Qe7 {[%clk 00:14:08]}
{[%emt 00:01:33]} 23. e5 {[%clk 00:30:35]} {[%emt 00:01:30]} Ne8 {[%clk
00:13:20]} {[%emt 00:01:19]} 24. Red2 {[%clk 00:29:16]} {[%emt 00:01:49]} Rd8
{[%clk 00:11:07]} {[%emt 00:02:43]} 25. Rxd8 {[%clk 00:29:01]} {[%emt
00:00:45]} Bxd8 {[%clk 00:11:30]} {[%emt 00:00:06]} 26. Bxc5 {[%clk 00:29:03]}
{[%emt 00:00:27]} Qxc5 {[%clk 00:11:20]} {[%emt 00:00:41]} 27. Rxd8 {[%clk
00:29:25]} {[%emt 00:00:08]} Nc7 {[%clk 00:11:08]} {[%emt 00:00:42]} 28. Rxf8+
{[%clk 00:29:37]} {[%emt 00:00:18]} Kxf8 {[%clk 00:11:22]} {[%emt 00:00:16]} 29.
Qd1 {[%clk 00:29:00]} {[%emt 00:01:07]} Ncd5 {[%clk 00:10:59]} {[%emt
00:00:54]} 30. Nd4 {[%clk 00:28:03]} {[%emt 00:01:27]} Nc3 {[%clk 00:10:21]}
{[%emt 00:01:08]} 31. Qf3 {[%clk 00:26:36]} {[%emt 00:01:56]} Kg8 {[%clk
00:06:44]} {[%emt 00:04:18]} 32. Qxf7+ {[%clk 00:26:42]} {[%emt 00:00:25]} Kh7
{[%clk 00:07:04]} {[%emt 00:00:10]} 33. Qf5+ {[%clk 00:25:19]} {[%emt
00:01:52]} Kh8 {[%clk 00:07:07]} {[%emt 00:00:27]} 34. Ne6 {[%clk 00:24:32]}
{[%emt 00:01:18]} Qe7 {[%clk 00:05:16]} {[%emt 00:02:20]} 35. Qf8+ {[%clk
00:23:02]} {[%emt 00:02:00]} Qxf8 {[%clk 00:05:41]} {[%emt 00:00:06]} 36. Nxf8
{[%emt 00:02:59]} Nc6 {[%clk 00:03:36]} 37. e6 {[%clk 00:22:37]} {[%emt
00:01:00]} Ne7 {[%clk 00:03:43]} {[%emt 00:00:23]} 38. Kf1 {[%clk 00:22:50]}
{[%emt 00:00:17]} g5 {[%clk 00:03:07]} {[%emt 00:01:05]} 39. Nd7 {[%clk
00:22:32]} {[%emt 00:00:49]} Kg7 {[%clk 00:02:41]} {[%emt 00:00:56]} 40. g3
{[%clk 00:22:33]} {[%emt 00:00:28]} Ned5 {[%clk 00:01:49]} {[%emt 00:01:23]} 41.
Ke1 {[%clk 00:22:14]} {[%emt 00:00:48]} Kg6 {[%clk 00:01:51]} {[%emt 00:00:28]}
42. Nb6 {[%clk 00:22:01]} {[%emt 00:00:44]} Nc7 {[%clk 00:01:30]} {[%emt
00:00:51]} 43. f3 {[%clk 00:20:39]} {[%emt 00:01:52]} Kf6 {[%clk 00:00:45]}
{[%emt 00:01:14]} 44. Kd2 {[%clk 00:20:55]} {[%emt 00:00:14]} Nb1+ {[%clk
00:00:36]} {[%emt 00:00:39]} 45. Kc2 {[%clk 00:20:45]} {[%emt 00:00:40]} Na3+
{[%clk 00:00:47]} {[%emt 00:00:19]} 46. Kb2 {[%clk 00:20:31]} {[%emt 00:00:55]}
Nab5 {[%clk 00:01:09]} {[%emt 00:00:09]} 47. axb5 {[%clk 00:20:37]} {[%emt
00:00:24]} Nxb5 {[%clk 00:01:33]} {[%emt 00:00:06]} 48. Nc4 {[%clk 00:20:41]}
{[%emt 00:00:26]} Nd4 {[%clk 00:01:37]} {[%emt 00:00:25]} 49. Nxa5 {[%clk
00:20:53]} {[%emt 00:00:19]} Nxf3 {[%clk 00:01:50]} {[%emt 00:00:17]} 50. Nc6
{[%clk 00:21:01]} {[%emt 00:00:21]} Ne1 {[%clk 00:00:59]} {[%emt 00:01:21]} 51.
e7 {[%clk 00:21:18]} {[%emt 00:00:14]} Nd3+ {[%clk 00:01:21]} {[%emt 00:00:07]}
52. Ka3 {[%clk 00:21:39]} {[%emt 00:00:09]} 1-0